fUST/lending_fUST_20250912
["ID","MTS","AMOUNT","RATE_DAILY","PERIOD"]
[384937319,1757628648834,-3000.0,0.0002303,2]
[384937321,1757628648843,-3000.0,0.0002304,2]
[384937323,1757628648852,-228.8999,0.0002304,3]
[384937325,1757628648862,-166.0,0.0002304,3]
[384937327,1757628648871,-3000.0,0.0002305,2]
[384937329,1757628648882,-151.0,0.0002305,7]
[384937331,1757628648891,-151.0,0.0002305,7]
[384937333,1757628648900,-3000.0,0.0002306,2]
[384937335,1757628648911,-3000.0,0.0002307,2]
[384937337,1757628648920,-3000.0,0.0002308,2]
[384937339,1757628648930,-3000.0,0.0002309,2]
[384937341,1757628648939,-3000.0,0.000231,2]
[384937343,1757628648948,-3000.0,0.0002311,2]
[384937345,1757628648957,-3000.0,0.0002312,2]
[384937347,1757628648967,-3000.0,0.0002313,2]
[384937349,1757628648976,-409.0,0.00023133,2]
[384937351,1757628648985,-3000.0,0.0002314,2]
[384937353,1757628648996,-3000.0,0.0002315,2]
[384937355,1757628649006,-407.036635,0.0002315,7]
[384937357,1757628649015,-407.036635,0.0002315,7]
[384937359,1757628649024,-407.036635,0.0002315,7]
[384937361,1757628649033,-407.036635,0.0002315,7]
[384937363,1757628649043,-295.014964,0.0002315,7]
[384937365,1757628649052,-3000.0,0.0002316,2]
[384937367,1757628649061,-273.610234,0.0002316,7]
[384937369,1757628649071,-273.610234,0.0002316,7]
[384937371,1757628649080,-273.610234,0.0002316,7]
[384937373,1757628649089,-273.610234,0.0002316,7]
[384937375,1757628649098,-3000.0,0.0002317,2]
[384937377,1757628649108,-3000.0,0.0002318,2]
[384937379,1757628649118,-151.0,0.0002318,7]
[384937381,1757628649128,-3000.0,0.0002319,2]
[384937383,1757628649137,-151.0,0.0002319,7]
[384937385,1757628649147,-151.0,0.0002319,7]
[384937387,1757628649156,-296.749048,0.0002319,7]
[384937389,1757628649166,-3000.0,0.000232,2]
[384937391,1757628649176,-3000.0,0.0002321,2]
[384937393,1757628649186,-1142.64233749,0.0002322,2]
[384937395,1757628649195,-3000.0,0.0002322,2]
[384937397,1757628649205,-3000.0,0.0002323,2]
[384937399,1757628649214,-5000.0,0.00023233,2]
[384937401,1757628649223,-3000.0,0.0002324,2]
[384937403,1757628649232,-3000.0,0.0002325,2]
[384937405,1757628649241,-3000.0,0.0002326,2]
[384937407,1757628649251,-3000.0,0.0002327,2]
[384937409,1757628649260,-500.0,0.00023273,2]
[384937411,1757628649269,-10583.28703691,0.00023277,10]
[384937413,1757628649278,-151.0,0.00023277,7]
[384937415,1757628649287,-3000.0,0.0002328,2]
[384937417,1757628649297,-404.59763346,0.00023287,2]
[384937419,1757628649306,-1069.26,0.00023287,2]
[384937421,1757628649315,-500.0,0.00023288,2]
[384937423,1757628649324,-3000.0,0.0002329,2]
[384937425,1757628649333,-37832.91574288,0.000233,7]
[384937460,1757628649653,-480.0,0.00014065,2]
[384937462,1757628649662,-480.0,0.00014339,2]
[384937464,1757628649671,-480.0,0.00014613,2]
[384937466,1757628649681,-480.0,0.00014887,2]
[384937468,1757628649690,-480.0,0.00014889,2]
[384937470,1757628649700,-480.0,0.00015163,2]
[384937472,1757628649709,-202.17,0.00015437,2]
[384937474,1757628649718,-480.0,0.00015709,2]
[384937476,1757628649727,-23.97584053,0.00015983,2]
[384937479,1757628649739,-456.02415947,0.00015983,2]
[384937481,1757628649749,-480.0,0.00016257,2]
[384937483,1757628649758,-480.0,0.00016531,2]
[384937485,1757628649768,-480.0,0.00016805,2]
[384937487,1757628649777,-480.0,0.00017079,2]
[384937489,1757628649786,-609.24,0.00017351,2]
[384937490,1757628649796,-387.37,0.00017353,2]
[384937493,1757628649806,-609.24,0.00017625,2]
[384937495,1757628649818,-609.24,0.00017899,2]
[384937496,1757628649828,-609.24,0.00018173,2]
[384937499,1757628649838,-19153.64714207,0.000233,7]
[384937501,1757628649849,-870.4725065,0.000233,7]
[384938033,1757628768201,9111.18849204,0.00013694,2]
[384938034,1757628768255,10000.01,0.00013694,2]
[384938035,1757628768311,10000.01,0.00013694,2]
[384938036,1757628768367,10000.01,0.00013694,2]
[384938037,1757628768424,10000.01,0.00013694,2]
[384938038,1757628768478,10000.01,0.00013694,2]
[384938039,1757628768533,10000.01,0.00013694,2]
[384938040,1757628768591,10000.01,0.00013694,2]
[384938041,1757628768647,10000.01,0.00013694,2]
[384938042,1757628768705,10000.01,0.00013694,2]
[384938043,1757628768763,10000.01,0.00013694,2]
[384938044,1757628768822,10000.01,0.00013694,2]
[384938045,1757628768877,10000.01,0.00013694,2]
[384938046,1757628768935,10000.01,0.00013694,2]
[384938047,1757628768993,10000.01,0.00013694,2]
[384938048,1757628769052,10000.01,0.00013694,2]
[384938049,1757628769113,10000.01,0.00013694,2]
[384938050,1757628769174,10000.01,0.00013694,2]
[384938051,1757628769233,10000.01,0.00013694,2]
[384938052,1757628769291,10000.01,0.00013694,2]
[384938053,1757628769349,10000.01,0.00013694,2]
[384938054,1757628769406,10000.01,0.00013694,2]
[384938055,1757628769463,10000.01,0.00013694,2]
[384938056,1757628769522,10000.01,0.00013694,2]
[384938057,1757628769582,10000.01,0.00013694,2]
[384938058,1757628769641,10000.01,0.00013694,2]
[384938059,1757628769697,10000.01,0.00013694,2]
[384938060,1757628769754,10000.01,0.00013694,2]
[384938061,1757628769812,10000.01,0.00013694,2]
[384938062,1757628769870,10000.01,0.00013694,2]
[384938063,1757628769927,10000.01,0.00013694,2]
[384938064,1757628769989,10000.01,0.00013694,2]
[384938065,1757628770052,10000.01,0.00013694,2]
[384938066,1757628770109,10000.01,0.00013694,2]
[384938067,1757628770168,10000.01,0.00013694,2]
[384938068,1757628770222,10000.01,0.00013694,2]
[384938069,1757628770277,10000.01,0.00013694,2]
[384938070,1757628770455,888.45150796,0.00013694,2]
[384938075,1757628781303,271.8,0.000151,7]
[384938080,1757628789239,1653.7533216,0.000151,7]
[384938084,1757628797425,1653.7533216,0.00013649,2]
[384938086,1757628806386,2160.0,0.00013649,2]
[384938088,1757628814615,1582.5022144,0.00013649,2]
[384938090,1757628823027,2994.4733216,0.00013649,2]
[384938094,1757628831137,1609.2811424,0.00013649,2]
[384938095,1757628831193,1396.25589863,0.00013649,2]
[384938097,1757628839555,2205.0044288,0.00013649,2]
[384938098,1757628842784,993.30252675,0.00013688,2]
[384938100,1757628847861,300.0,0.00013648,2]
[384938103,1757628855751,300.0,0.00013648,2]
[384938105,1757628863878,300.0,0.00013648,2]
[384938107,1757628869451,4505.44714582,0.00012793,2]
[384938108,1757628869628,5494.55285418,0.00012793,2]
[384938109,1757628872449,300.0,0.00013648,2]
[384938111,1757628881116,300.0,0.00013648,2]
[384938114,1757628889586,300.0,0.00013648,2]
[384938115,1757628892615,204.10530951,0.00013688,2]
[384938124,1757628904488,300.0,0.00013648,2]
[384938125,1757628910658,2163.29,0.00012329,2]
[384938129,1757628912584,2400.0,0.00013648,2]
[384938131,1757628920482,2400.0,0.00013648,2]
[384938132,1757628921110,1802.74,0.00012329,2]
[384938134,1757628926399,10000.01,0.00013694,2]
[384938135,1757628926451,10000.01,0.00013694,2]
[384938136,1757628926512,10000.01,0.00013694,2]
[384938137,1757628926561,10000.01,0.00013694,2]
[384938138,1757628926607,10000.01,0.00013694,2]
[384938139,1757628926658,10000.01,0.00013694,2]
[384938140,1757628926704,10000.01,0.00013694,2]
[384938141,1757628926754,10000.01,0.00013694,2]
[384938142,1757628926799,10000.01,0.00013694,2]
[384938143,1757628926850,10000.01,0.00013694,2]
[384938144,1757628926914,10000.01,0.00013694,2]
[384938145,1757628926967,1153.63330546,0.00013694,2]
[384938146,1757628930209,2400.0,0.00013648,2]
[384938147,1757628931735,1502.29,0.00012329,2]
[384938149,1757628938588,2400.0,0.00013648,2]
[384938151,1757628942663,1251.9,0.00012329,2]
[384938153,1757628947313,2400.0,0.00013648,2]
[384938154,1757628953360,45.82,0.00012329,2]
[384938155,1757628953409,2648.28,0.00012329,2]
[384938157,1757628955719,2400.0,0.00013648,2]
[384938158,1757628956537,158.0,7.8e-07,2]
[384938159,1757628957564,158.0,7.8e-07,2]
[384938160,1757628958594,158.0,7.8e-07,2]
[384938161,1757628959727,158.0,7.8e-07,2]
[384938162,1757628960822,158.0,7.8e-07,2]
[384938164,1757628961860,158.0,7.8e-07,2]
[384938165,1757628962985,158.0,7.8e-07,2]
[384938166,1757628964082,2796.3,0.00012329,2]
[384938167,1757628964168,158.0,7.8e-07,2]
[384938168,1757628964492,300.0,0.00013647,2]
[384938169,1757628965266,158.0,7.8e-07,2]
[384938170,1757628966300,158.0,7.8e-07,2]
[384938174,1757628972283,300.0,0.00013647,2]
[384938175,1757628975267,2700.11,0.00012329,2]
[384938177,1757628980252,201.1954227,0.00012791,2]
[384938178,1757628981857,300.0,0.00013647,2]
[384938180,1757628986305,2250.09,0.00012329,2]
[384938181,1757628989841,300.0,0.00013647,2]
[384938183,1757628997143,1875.07,0.00012329,2]
[384938184,1757628997969,300.0,0.00013647,2]
[384938188,1757629005783,300.0,0.00013647,2]
[384938189,1757629008198,1562.56,0.00012329,2]
[384938191,1757629014453,300.0,0.00013647,2]
[384938193,1757629018763,1302.13,0.00012329,2]
[384938194,1757629023430,300.0,0.00013647,2]
[384938196,1757629029359,1085.11,0.00012329,2]
[384938198,1757629033602,2400.0,0.00013648,2]
[384938200,1757629040287,575.14,0.00012329,2]
[384938201,1757629040336,329.12,0.00012329,2]
[384938202,1757629041967,1200.0,0.00013647,2]
[384938204,1757629050622,1200.0,0.00013647,2]
[384938205,1757629050824,753.55,0.00012329,2]
[384938207,1757629059019,951.14404704,0.00013647,2]
[384938208,1757629061308,627.96,0.00012329,2]
[384938210,1757629067233,1200.0,0.00013647,2]
[384938212,1757629071800,523.3,0.00012329,2]
[384938213,1757629075646,1200.0,0.00013647,2]
[384938215,1757629078019,168.300064,6.481e-05,2]
[384938216,1757629078337,168.300064,9.721e-05,2]
[384938217,1757629078550,168.300064,0.00012961,2]
[384938221,1757629080169,177.4267148,0.00013692,2]
[384938222,1757629082268,436.08,0.00012329,2]
[384938223,1757629091924,896.52904616,0.00013647,2]
[384938224,1757629091976,603.47095384,0.00013647,2]
[384938225,1757629092689,363.4,0.00012329,2]
[384938226,1757629099852,1500.0,0.00013647,2]
[384938227,1757629103419,302.84,0.00012329,2]
[384938229,1757629111821,666.0,0.00012961,2]
[384938230,1757629114068,252.36,0.00012329,2]
[384938231,1757629116321,1500.0,0.00013647,2]
[384938232,1757629120087,4811.93904616,0.0001279,2]
[384938233,1757629120131,10000.01,0.0001279,2]
[384938234,1757629120176,4384.71978624,0.0001279,2]
[384938235,1757629124185,1500.0,0.00013647,2]
[384938236,1757629124375,210.3,0.00012329,2]
[384938240,1757629134922,175.25,0.00012329,2]
[384938241,1757629140206,1500.0,0.00013647,2]
[384938243,1757629145305,876.29,0.00012329,2]
[384938244,1757629148095,1200.0,0.00013647,2]
[384938247,1757629164441,153.45021376,0.00013647,2]
[384938248,1757629164490,1046.54978624,0.00013647,2]
[384938250,1757629172291,1200.0,0.00013647,2]
[384938251,1757629175986,209.4711557,0.00012961,2]
[384938253,1757629188599,1200.0,0.00013647,2]
[384938254,1757629194227,1000.0,0.00012961,2]
[384938255,1757629196936,1200.0,0.00013647,2]
[384938259,1757629212960,2400.0,0.00013647,2]
[384938260,1757629220847,1743.98905806,0.00013647,2]
[384938261,1757629220906,656.01094194,0.00013647,2]
[384938262,1757629230956,200.0,0.00025036,120]
[384938263,1757629235972,2400.0,0.00013647,2]
[384938264,1757629239978,578.916297,0.00013699,2]
[384938265,1757629244022,2400.0,0.00013647,2]
[384938267,1757629259871,2400.0,0.00013647,2]
[384938268,1757629267693,1565.08276106,0.00013647,2]
[384938269,1757629267748,834.91723894,0.00013647,2]
[384938270,1757629283722,2400.0,0.00013647,2]
[384938271,1757629291929,2400.0,0.00013647,2]
[384938272,1757629307248,2400.0,0.00013647,2]
[384938273,1757629316550,1965.09276106,0.00013647,2]
[384938274,1757629316605,434.90723894,0.00013647,2]
[384938275,1757629331959,2700.0,0.00013647,2]
[384938276,1757629339971,2700.0,0.00013647,2]
[384938279,1757629355964,2700.0,0.00013647,2]
[384938281,1757629364353,1465.10276106,0.00013647,2]
[384938282,1757629364417,1234.89723894,0.00013647,2]
[384938284,1757629380644,2700.0,0.00013647,2]
[384938289,1757629389690,2700.0,0.00013647,2]
[384938291,1757629405498,330.68885554,0.00013647,2]
[384938293,1757629413408,858.00044155,0.00013647,2]
[384938294,1757629416442,177.4267148,0.00013689,2]
[384938302,1757629484160,1998.99674917,0.00012329,2]
[384938303,1757629484217,3048.68325083,0.00012329,2]
[384938306,1757629494592,4206.4,0.00012329,2]
[384938307,1757629505181,2744.92674917,0.00012329,2]
[384938308,1757629505273,760.40325083,0.00012329,2]
[384938352,1757629515746,2921.11,0.00012329,2]
[384938353,1757629517094,1304.4320462,0.00013699,2]
[384938354,1757629517610,2100.0,0.00013646,2]
[384938355,1757629526063,2100.0,0.00013646,2]
[384938356,1757629526136,2434.26,0.00012329,2]
[384938358,1757629532341,1490.0575877,0.00028388,66]
[384938359,1757629534153,1030.11818888,0.00013646,2]
[384938360,1757629536507,2028.55,0.00012329,2]
[384938362,1757629542950,2100.0,0.00013646,2]
[384938363,1757629547167,1690.46,0.00012329,2]
[384938365,1757629551538,2100.0,0.00013646,2]
[384938369,1757629557550,1408.71,0.00012329,2]
[384938370,1757629559326,2100.0,0.00013646,2]
[384938372,1757629567996,2400.0,0.00013646,2]
[384938373,1757629568194,1173.93,0.00012329,2]
[384938377,1757629576408,2400.0,0.00013646,2]
[384938378,1757629578640,978.27,0.00012329,2]
[384938381,1757629584958,2400.0,0.00013646,2]
[384938382,1757629589048,815.23,0.00012329,2]
[384938384,1757629594205,2400.0,0.00013646,2]
[384938385,1757629597903,673.92195387,0.00013692,2]
[384938387,1757629599898,332.58804613,0.00012329,2]
[384938388,1757629599963,346.77195387,0.00012329,2]
[384938390,1757629602290,2400.0,0.00013646,2]
[384938391,1757629610126,2400.0,0.00013646,2]
[384938392,1757629610216,566.13,0.00012329,2]
[384938393,1757629618008,632.72526284,0.00013646,2]
[384938394,1757629621133,566.13,0.00012329,2]
[384938396,1757629625809,300.0,0.00013645,2]
[384938399,1757629631594,377.42,0.00012329,2]
[384938400,1757629634020,300.0,0.00013645,2]
[384938406,1757629642057,314.52,0.00012329,2]
[384938410,1757629649170,1500.0,0.00013645,2]
[384938414,1757629652489,262.1,0.00012329,2]
[384938415,1757629655327,34.21278329,0.00013699,2]
[384938416,1757629655385,425.32477271,0.00013699,2]
[384938417,1757629657408,1500.0,0.00013645,2]
[384938419,1757629663125,218.41,0.00012329,2]
[384938422,1757629673301,1980.0,0.00013645,2]
[384938423,1757629673555,182.01,0.00012329,2]
[384938427,1757629682515,274.0,0.00013645,2]
[384938428,1757629683956,151.68,0.00012329,2]
[384938430,1757629694214,663.373659,0.0001337,2]
[384938431,1757629694400,758.41,0.00012329,2]
[384938432,1757629695211,186.626418,0.00013371,2]
[384938433,1757629695592,342.50872367,0.00013372,2]
[384938435,1757629698897,5000.0,0.00028388,60]
[384938436,1757629699047,342.50872367,0.00013238,2]
[384938446,1757629748795,177.4267148,0.00013689,2]
[384938505,1757629832544,-300.0,0.00013782,2]
[384938506,1757629832554,-300.0,0.00013782,2]
[384938507,1757629832563,-300.0,0.00013782,2]
[384938508,1757629832573,-1200.0,0.00013782,2]
[384938509,1757629832582,-300.0,0.00013782,2]
[384938510,1757629832592,-480.0,0.00013782,2]
[384938511,1757629832601,-480.0,0.00013782,2]
[384938512,1757629832613,-214.02284841,0.00013782,2]
[384938513,1757629832622,-480.0,0.00013782,2]
[384938514,1757629832631,-480.0,0.00013782,2]
[384938515,1757629832641,-480.0,0.00013782,2]
[384938516,1757629832650,-480.0,0.00013782,2]
[384938517,1757629832659,-1200.0,0.00013783,2]
[384938518,1757629832668,-480.0,0.00013783,2]
[384938519,1757629832678,-480.0,0.00013783,2]
[384938520,1757629832687,-480.0,0.00013783,2]
[384938521,1757629832696,-480.0,0.00013783,2]
[384938522,1757629832705,-480.0,0.00013783,2]
[384938523,1757629832715,-480.0,0.00013783,2]
[384938524,1757629832724,-480.0,0.00013783,2]
[384938525,1757629832733,-480.0,0.00013783,2]
[384938526,1757629832743,-626.79,0.00013783,2]
[384938527,1757629832752,-304.4211543,0.00013783,2]
[384938528,1757629832762,-500.0,0.00013783,2]
[384938529,1757629832771,-500.0,0.00013783,2]
[384938530,1757629832780,-500.0,0.00013783,2]
[384938531,1757629832789,-500.0,0.00013783,2]
[384938532,1757629832798,-250.0,0.00013783,2]
[384938533,1757629832807,-500.0,0.00013783,2]
[384938534,1757629832817,-501.84830462,0.00013783,2]
[384938535,1757629832826,-500.0,0.00013783,2]
[384938536,1757629832835,-500.0,0.00013783,2]
[384938537,1757629832845,-531.71721706,0.00013783,2]
[384938538,1757629832854,-500.0,0.00013783,2]
[384938539,1757629832864,-338.57785389,0.00013783,2]
[384938540,1757629832873,-500.0,0.00013783,2]
[384938541,1757629832882,-500.0,0.00013783,2]
[384938542,1757629832891,-500.0,0.00013783,2]
[384938543,1757629832901,-500.0,0.00013783,2]
[384938544,1757629832910,-500.0,0.00013783,2]
[384938545,1757629832920,-500.0,0.00013783,2]
[384938546,1757629832929,-500.0,0.00013783,2]
[384938547,1757629832938,-500.0,0.00013783,2]
[384938548,1757629832947,-500.0,0.00013783,2]
[384938549,1757629832956,-500.0,0.00013783,2]
[384938550,1757629832965,-500.0,0.00013783,2]
[384938551,1757629832975,-377.9396283,0.00013783,2]
[384938552,1757629832984,-500.0,0.00013783,2]
[384938553,1757629832993,-500.0,0.00013783,2]
[384938554,1757629833003,-500.0,0.00013783,2]
[384938555,1757629833012,-500.0,0.00013783,2]
[384938556,1757629833021,-500.0,0.00013783,2]
[384938557,1757629833031,-500.0,0.00013783,2]
[384938558,1757629833041,-500.0,0.00013783,2]
[384938559,1757629833051,-500.0,0.00013783,2]
[384938560,1757629833062,-500.0,0.00013783,2]
[384938561,1757629833074,-500.0,0.00013783,2]
[384938562,1757629833084,-500.0,0.00013783,2]
[384938563,1757629833094,-500.0,0.00013783,2]
[384938564,1757629833104,-500.0,0.00013783,2]
[384938565,1757629833117,-500.0,0.00013783,2]
[384938566,1757629833126,-500.0,0.00013783,2]
[384938567,1757629833135,-500.0,0.00013783,2]
[384938568,1757629833144,-500.0,0.00013783,2]
[384938569,1757629833153,-500.0,0.00013783,2]
[384938570,1757629833164,-500.0,0.00013783,2]
[384938571,1757629833173,-500.0,0.00013783,2]
[384938572,1757629833183,-500.0,0.00013783,2]
[384938573,1757629833193,-500.0,0.00013783,2]
[384938574,1757629833202,-481.27189434,0.00013783,2]
[384938575,1757629833212,-500.0,0.00013783,2]
[384938576,1757629833222,-500.0,0.00013783,2]
[384938577,1757629833233,-500.0,0.00013783,2]
[384938578,1757629833244,-500.0,0.00013783,2]
[384938579,1757629833254,-500.0,0.00013783,2]
[384938580,1757629833264,-500.0,0.00013783,2]
[384938581,1757629833275,-500.0,0.00013783,2]
[384938582,1757629833287,-500.0,0.00013783,2]
[384938583,1757629833297,-500.0,0.00013783,2]
[384938584,1757629833307,-500.0,0.00013783,2]
[384938585,1757629833316,-500.0,0.00013783,2]
[384938586,1757629833326,-500.0,0.00013783,2]
[384938587,1757629833336,-314.03522886,0.00013783,2]
[384938588,1757629833346,-500.0,0.00013783,2]
[384938589,1757629833357,-500.0,0.00013783,2]
[384938590,1757629833367,-500.0,0.00013783,2]
[384938591,1757629833377,-500.0,0.00013783,2]
[384938592,1757629833386,-500.0,0.00013783,2]
[384938593,1757629833396,-500.0,0.00013783,2]
[384938594,1757629833405,-500.0,0.00013783,2]
[384938595,1757629833414,-500.0,0.00013783,2]
[384938596,1757629833423,-500.0,0.00013783,2]
[384938597,1757629833433,-500.0,0.00013783,2]
[384938598,1757629833442,-500.0,0.00013783,2]
[384938599,1757629833452,-492.5252563,0.00013783,2]
[384938600,1757629833461,-500.0,0.00013783,2]
[384938601,1757629833471,-500.0,0.00013783,2]
[384938602,1757629833481,-442.36354382,0.00013783,2]
[384938603,1757629833490,-480.0,0.00013785,2]
[384938604,1757629833500,-480.0,0.00013785,2]
[384938605,1757629833509,-480.0,0.00013785,2]
[384938606,1757629833518,-480.0,0.00013785,2]
[384938607,1757629833528,-480.0,0.00013785,2]
[384938608,1757629833537,-480.0,0.00013785,2]
[384938609,1757629833547,-480.0,0.00013785,2]
[384938610,1757629833556,-480.0,0.00013785,2]
[384938611,1757629833566,-627.39,0.00013785,2]
[384938612,1757629833576,-480.0,0.00013785,2]
[384938613,1757629833586,-480.0,0.00013785,2]
[384938614,1757629833596,-480.0,0.00013785,2]
[384938615,1757629833606,-201.0,0.00013785,2]
[384938616,1757629833615,-480.0,0.00013785,2]
[384938617,1757629833624,-480.0,0.00013785,2]
[384938618,1757629833633,-480.0,0.00013785,2]
[384938619,1757629833642,-480.0,0.00013785,2]
[384938620,1757629833652,-480.0,0.00013785,2]
[384938621,1757629833664,-480.0,0.00013785,2]
[384938622,1757629833674,-480.0,0.00013785,2]
[384938623,1757629833683,-480.0,0.00013785,2]
[384938624,1757629833693,-480.0,0.00013785,2]
[384938625,1757629833707,-480.0,0.00013785,2]
[384938626,1757629833716,-480.0,0.00013785,2]
[384938627,1757629833726,-480.0,0.00013785,2]
[384938628,1757629833735,-480.0,0.00013785,2]
[384938629,1757629833744,-480.0,0.00013785,2]
[384938630,1757629833755,-480.0,0.00013785,2]
[384938631,1757629833764,-480.0,0.00013785,2]
[384938632,1757629833773,-480.0,0.00013785,2]
[384938633,1757629833782,-480.0,0.00013785,2]
[384938634,1757629833792,-480.0,0.00013785,2]
[384938635,1757629833802,-480.0,0.00013785,2]
[384938636,1757629833811,-480.0,0.00013785,2]
[384938637,1757629833821,-480.0,0.00013785,2]
[384938638,1757629833831,-480.0,0.00013785,2]
[384938639,1757629833840,-480.0,0.00013785,2]
[384938640,1757629833850,-480.0,0.00013785,2]
[384938641,1757629833860,-480.0,0.00013785,2]
[384938642,1757629833879,-480.0,0.00013786,2]
[384938643,1757629833891,-480.0,0.00013786,2]
[384938644,1757629833901,-480.0,0.00013786,2]
[384938645,1757629833911,-480.0,0.00013786,2]
[384938646,1757629833921,-480.0,0.00013786,2]
[384938647,1757629833930,-500.0,0.00013786,2]
[384938648,1757629833940,-480.0,0.00013786,2]
[384938649,1757629833950,-480.0,0.00013786,2]
[384938650,1757629833959,-480.0,0.00013786,2]
[384938651,1757629833969,-480.0,0.00013786,2]
[384938652,1757629833979,-480.0,0.00013786,2]
[384938653,1757629833989,-480.0,0.00013786,2]
[384938654,1757629833998,-480.0,0.00013786,2]
[384938655,1757629834008,-480.0,0.00013786,2]
[384938656,1757629834018,-480.0,0.00013786,2]
[384938657,1757629834028,-480.0,0.00013786,2]
[384938658,1757629834038,-480.0,0.00013786,2]
[384938659,1757629834048,-480.0,0.00013786,2]
[384938660,1757629834058,-480.0,0.00013786,2]
[384938661,1757629834068,-480.0,0.00013786,2]
[384938662,1757629834078,-480.0,0.00013786,2]
[384938663,1757629834088,-480.0,0.00013786,2]
[384938664,1757629834099,-480.0,0.00013786,2]
[384938665,1757629834110,-480.0,0.00013786,2]
[384938666,1757629834121,-480.0,0.00013786,2]
[384938667,1757629834131,-432.77562155,0.00013786,2]
[384938668,1757629834141,-480.0,0.00013786,2]
[384938669,1757629834151,-480.0,0.00013786,2]
[384938670,1757629834161,-486.72549177,0.00013786,2]
[384938671,1757629834171,-480.0,0.00013786,2]
[384938672,1757629834180,-480.0,0.00013786,2]
[384938673,1757629834190,-480.0,0.00013786,2]
[384938674,1757629834200,-480.0,0.00013786,2]
[384938675,1757629834210,-480.0,0.00013786,2]
[384938676,1757629834220,-480.0,0.00013786,2]
[384938677,1757629834230,-480.0,0.00013786,2]
[384938678,1757629834240,-480.0,0.00013786,2]
[384938679,1757629834249,-480.0,0.00013786,2]
[384938680,1757629834260,-480.0,0.00013786,2]
[384938681,1757629834270,-485.12393942,0.00013786,2]
[384938682,1757629834283,-170.875051,0.00013786,2]
[384938683,1757629834293,-480.0,0.00013786,2]
[384938684,1757629834302,-480.0,0.00013786,2]
[384938685,1757629834312,-480.0,0.00013786,2]
[384938686,1757629834322,-480.0,0.00013786,2]
[384938687,1757629834332,-480.0,0.00013786,2]
[384938688,1757629834342,-480.0,0.00013786,2]
[384938689,1757629834352,-480.0,0.00013786,2]
[384938690,1757629834363,-480.0,0.00013786,2]
[384938691,1757629834374,-480.0,0.00013786,2]
[384938692,1757629834383,-480.0,0.00013786,2]
[384938693,1757629834393,-415.43230139,0.00013786,2]
[384938694,1757629834403,-480.0,0.00013786,2]
[384938695,1757629834412,-480.0,0.00013786,2]
[384938696,1757629834422,-480.0,0.00013786,2]
[384938697,1757629834431,-480.0,0.00013786,2]
[384938698,1757629834440,-130.06466493,0.00013786,2]
[384938699,1757629834692,-349.93533507,0.00013786,2]
[384938700,1757629834702,-480.0,0.00013786,2]
[384938701,1757629834711,-456.81308376,0.00013786,2]
[384938702,1757629834720,-480.0,0.00013786,2]